[Event "FRA-ch Teams Top 16-B 2022"]
[Site "Chartres"]
[Date "2022.06.15"]
[Round "7.1"]
[White "Erigaisi Arjun"]
[Black "Esipenko, Andrey"]
[Result "1/2-1/2"]
[ECO "E59"]
[WhiteElo "2675"]
[BlackElo "2709"]
[Annotator "TA"]
[PlyCount "70"]
[EventDate "2022.06.09"]
[EventType "team-tourn"]
[EventCountry "FRA"]
[SourceTitle "playchess.com"]
[Source "ChessBase"]
[SourceQuality "1"]
[TimeControl "40/5400+30:1800+30"]

{[%evp 22,70,12,0,0,-3,0,0,0,0,0,7,0,0,0,0,0,0,0,0,0,0,0,0,0,-3,0,0,0,0,0,0,0,0,35,4,0,4,22,0,12,0,0,0,0,0,0,-14,0,-1,0]} 1. d4 {[%emt 0:00:06]} Nf6 {[%emt 0:00:13]} 2. c4 {[%emt 0:00:06]} e6 {[%emt 0:00:11]} 3. Nc3 {[%emt 0:00:07]} Bb4 {[%emt 0:00:15]} 4. e3 {[%emt 0:00:06]} O-O {[%emt 0:00:40]} 5. Bd3 {[%emt 0:00:07]} d5 {[%emt 0:00:20]} 6. a3 {[%emt 0:00:06]} Bxc3+ {[%emt 0:00:24]} 7. bxc3 {[%emt 0:00:07]} dxc4 {[%emt 0:00:10]} 8. Bxc4 {[%emt 0:00:05]} c5 {[%emt 0:00:05]} 9. Nf3 {[%emt 0:00:07]} Qc7 {[%emt 0:00:22]} 10. Be2 {[%emt 0:00:14]} b6 {[%emt 0:04:28]} 11. O-O {[%emt 0:00:25] 11.Bb2 injects fresh life into this line.} Nc6 {[%emt 0:06:43][%cal Bb8c6,Bc6e7,Be7g6][%mdl 32]} 12. Bb2 {[%emt 0:01:30]} Rd8 {[%emt 0:04:02] E59: Nimzo-Indian: Rubinstein: Main Line: 7...Nc6 8 a3 Bxc3 9 bxc3 dxc4.} 13. c4 {[%emt 0:02:16]} Bb7 {[%emt 0:03:51]} 14. Rc1 {[%emt 0:05:48]} Rac8 {[%emt 0:01:30]} 15. Re1 {[%emt 0:00:14] [#]} Ne7 $146 {[%emt 0:04:04]} ({Predecessor:} 15... Na5 16. Ne5 Qe7 17. Bf1 h6 18. Bc3 Nd7 19. Nxd7 Qxd7 20. dxc5 Qe7 21. Qc2 Qxc5 {½-½ (21) Salvador Marques,C (2430)-Oudheusden,W (2432) ICCF email 2019}) 16. Ne5 {[%emt 0:00:22]} Ng6 {[%emt 0:00:40]} 17. Nd3 {[%emt 0:00:36]} Ne4 {[%emt 0:31:51]} 18. Bf1 {[%emt 0:40:24]} Nd6 {[%emt 0:06:18]} 19. d5 {[%emt 0:06:42]} exd5 {[%emt 0:04:25]} 20. cxd5 {[%emt 0:00:20]} Bxd5 {[%emt 0:05:00] With the idea ...Nc4.} 21. Nxc5 $1 {[%emt 0:00:31]} Nc4 {[%emt 0:01:22]} 22. Nd3 {[%emt 0:02:26]} Nxb2 {[%emt 0:01:12]} 23. Nxb2 {[%emt 0:01:50]} Qb7 {[%emt 0:02:26][%cal Od5g2] [#] And now ...Bxg2! would win.} 24. Qa4 {[%emt 0:01:37]} Qe7 {[%emt 0:03:06]} 25. Nd3 {[%emt 0:02:09]} Ba8 {[%emt 0:00:28]} 26. Qa6 {[%emt 0:03:38]} Rxc1 {[%emt 0:05:06]} 27. Rxc1 {[%emt 0:00:09]} Qd7 {[%emt 0:02:16]} 28. Rc4 {[%emt 0:03:56]} Qe7 {[%emt 0:04:28] The position is equal.} 29. Rc8 {[%emt 0:02:03]} Rf8 {[%emt 0:00:07]} 30. h3 {[%emt 0:05:07]} h6 {[%emt 0:00:47]} 31. Rxf8+ {[%emt 0:03:08]} Nxf8 {[%emt 0:00:10]} 32. Qc8 {[%emt 0:00:38]} Be4 {[%emt 0:01:01]} 33. a4 {[%emt 0:02:10]} Qd7 {[%emt 0:01:41]} 34. Qc4 {[%emt 0:00:29]} Bd5 {[%emt 0:00:28]} 35. Qb4 {[%emt 0:00:27]} Ne6 {[%emt 0:04:06] An interesting draw.  Weighted Error Value: White=0.04 (flawless) /Black=0.04 (flawless)} 1/2-1/2

[Event "FRA-ch Teams Top 16-B 2022"]
[Site "Chartres"]
[Date "2022.06.15"]
[Round "7.2"]
[White "Alekseenko, Kirill"]
[Black "Nihal Sarin"]
[Result "1/2-1/2"]
[ECO "C43"]
[WhiteElo "2698"]
[BlackElo "2646"]
[Annotator "TA"]
[PlyCount "62"]
[EventDate "2022.06.09"]
[EventType "team-tourn"]
[EventCountry "FRA"]
[SourceTitle "playchess.com"]
[Source "ChessBase"]
[SourceQuality "1"]
[TimeControl "40/5400+30:1800+30"]

{[%evp 12,62,0,0,0,0,0,0,0,0,1,0,0,0,0,0,0,0,0,0,1,0,0,0,0,0,0,0,0,0,0,0,12,0,0,0,0,0,0,0,0,0,0,0,0,0,0,0,0,-14,-18,-24,-24]} 1. e4 {[%emt 0:00:03]} e5 {[%emt 0:00:06]} 2. Nf3 {[%emt 0:00:11]} Nf6 {[%emt 0:00:05]} 3. d4 {[%emt 0:00:24]} Nxe4 {[%emt 0:00:17]} 4. Bd3 {[%emt 0:00:14]} d5 {[%emt 0:00:10]} 5. Nxe5 {[%emt 0:00:23]} Nd7 {[%emt 0:00:24]} 6. O-O {[%emt 0:00:30]} Nxe5 {[%emt 0:02:28]} 7. dxe5 {[%emt 0:00:13]} Nc5 {[%emt 0:00:02] C43: Petroff Defence: 3 d4.} 8. Be3 {[%emt 0:00:17]} c6 {[%emt 1:30:58]} 9. f4 {[%emt 0:00:28]} Nxd3 {[%emt 0:00:00] The position is equal.} 10. Qxd3 {[%emt 0:00:05]} g6 {[%emt 0:00:00]} 11. Nc3 {[%emt 0:00:11]} Bf5 {[%emt 0:00:00]} 12. Qe2 {[%emt 0:00:46]} h5 {[%emt 0:00:00] [#] Inhibits g4.} 13. Qf2 $146 {[%emt 0:00:49]} ({Predecessor:} 13. h3 h4 14. Bf2 Be7 15. Nd1 Qd7 16. Ne3 Be4 17. Rad1 Qe6 18. c4 O-O-O 19. cxd5 cxd5 {0-1 (54) Ziatdinov,R (2213)-Keosidi,K (2404) Chess.com INT 2020}) 13... b6 {[%emt 0:00:00]} 14. Ne2 {[%emt 0:01:18]} Qd7 {[%emt 0:00:00]} 15. Ng3 {[%emt 0:31:23]} Be7 {[%emt 0:00:00]} 16. Nxf5 {[%emt 0:16:43]} Qxf5 {[%emt 0:00:00]} 17. c3 {[%emt 0:00:42]} O-O {[%emt 0:00:00]} 18. Rae1 {[%emt 0:05:47]} Rad8 {[%emt 0:00:00]} 19. b4 {[%emt 0:01:34]} Rc8 {[%emt 0:00:00]} 20. Qf3 {[%emt 0:03:05]} Rfd8 {[%emt 0:00:00]} 21. h3 {[%emt 0:03:15]} h4 {[%emt 0:00:00]} 22. Bf2 {[%emt 0:01:36]} c5 {[%emt 0:00:00]} 23. e6 {[%emt 0:13:12] [#] Black must now prevent Re5.} Bf6 {[%emt 0:00:00] Inhibits Re5.} ({Resist} 23... fxe6 24. Re5 Qf7 25. Qg4 $14) 24. exf7+ {[%emt 0:02:07]} Kxf7 {[%emt 0:00:00]} 25. bxc5 {[%emt 0:02:36]} bxc5 {[%emt 0:00:00]} 26. Rb1 {[%emt 0:07:04]} d4 {[%emt 0:00:00]} 27. cxd4 {[%emt 0:00:14]} cxd4 {[%emt 0:00:00]} 28. Rb7+ {[%emt 0:00:31]} Rd7 {[%emt 0:00:00]} 29. Rd1 {[%emt 0:00:38]} Rcd8 {[%emt 0:00:00]} 30. Rxd7+ {[%emt 0:03:26]} ({Much worse is} 30. Bxd4 Kg8 31. Qb3+ Qd5 32. Bxf6 Qxb3 33. axb3 Rxd1+ 34. Kh2 R8d7 35. Rb8+ Kf7 36. Bxh4 R1d4 $17) 30... Rxd7 {[%emt 0:00:00]} 31. Rd3 {[%emt 0:00:04]} Qd5 {[%emt 0:11:30] An even fight not without its subleties.  Weighted Error Value: White=0.01 (flawless) /Black=0.01 (flawless)} 1/2-1/2

[Event "FRA-ch Teams Top 16-B 2022"]
[Site "Chartres"]
[Date "2022.06.15"]
[Round "7.3"]
[White "Mendonca, Leon Luke"]
[Black "Gozzoli, Yannick"]
[Result "1-0"]
[ECO "D32"]
[WhiteElo "2551"]
[BlackElo "2591"]
[Annotator "TA"]
[PlyCount "173"]
[EventDate "2022.06.09"]
[EventType "team-tourn"]
[EventCountry "FRA"]
[SourceTitle "playchess.com"]
[Source "ChessBase"]
[SourceQuality "1"]
[TimeControl "40/5400+30:1800+30"]

{[%evp 12,173,27,44,29,39,45,44,44,28,18,16,29,18,39,0,33,14,16,17,26,-2,17,20,21,30,54,35,35,19,35,0,64,0,0,0,0,0,0,0,0,0,0,0,0,-12,0,-11,0,0,120,101,323,305,645,730,625,576,452,622,547,36,36,33,42,40,43,41,40,40,40,33,33,39,37,33,108,81,92,89,108,96,91,33,125,118,117,64,115,118,160,0,125,64,112,64,64,64,238,138,143,111,162,160,104,104,468,465,470,466,455,462,466,415,465,464,466,456,463,412,465,456,439,416,362,278,377,356,362,364,465,460,465,460,463,458,452,435,420,420,399,366,517,359,624,565,1309,1247,1112,1041,1236,1075,2277,2237,5306,5165,29978,29979,29989,29989,29989,29990,29996,29997]} 1. d4 {[%emt 0:00:03]} d5 {[%emt 0:00:15]} 2. c4 {[%emt 0:00:15]} e6 {[%emt 0:00:11]} 3. Nc3 {[%emt 0:00:36]} Nf6 {[%emt 0:00:17]} 4. Nf3 {[%emt 0:00:30]} c5 {[%emt 0:00:09]} 5. cxd5 {[%emt 0:00:33]} exd5 {[%emt 0:00:05]} 6. Bg5 {[%emt 0:01:24]} Be6 {[%emt 0:00:13]} 7. e3 {[%emt 0:01:34]} c4 {[%emt 0:01:19] D32: Tarrasch Defence: Sidelines and lines without g3.} 8. Be2 {[%emt 0:03:21]} Bb4 {[%emt 0:00:29]} 9. O-O {[%emt 0:01:26][%cal Oe3e4]} Nbd7 {[%emt 0:00:36] White is slightly better.} 10. Bxf6 {[%emt 0:26:28]} Qxf6 {[%emt 0:02:38] [#]} 11. e4 $146 {[%emt 0:03:10]} ({Predecessor:} 11. a3 Bxc3 12. bxc3 O-O 13. Nd2 Qg6 14. Bf3 f5 15. Qb1 Rab8 16. Bd1 b5 17. a4 bxa4 {1-0 (64) Trifunovic,P-Van Scheltinga,T Birmingham 1951}) 11... Bxc3 {[%emt 0:07:25]} 12. bxc3 {[%emt 0:00:07]} O-O {[%emt 0:02:53]} 13. Rb1 {[%emt 0:09:37]} (13. e5 $5 {[%cal Re5f6]} Qe7 14. Re1 $11) 13... Rab8 {[%emt 0:18:06]} 14. Nd2 {[%emt 0:03:44]} b5 {[%emt 0:03:01]} 15. Bf3 {[%emt 0:03:19]} Qg5 {[%emt 0:06:58]} 16. Re1 {[%emt 0:09:20]} a6 {[%emt 0:09:16]} 17. a4 {[%emt 0:05:59]} h6 {[%emt 0:05:29]} 18. g3 {[%emt 0:12:28]} Nf6 {[%emt 0:04:06][%cal Ob5b4]} 19. e5 {[%emt 0:03:50]} Ne8 {[%emt 0:04:15]} 20. Nf1 {[%emt 0:00:54]} Nc7 {[%emt 0:01:08]} 21. Bg2 {[%emt 0:07:45]} f5 {[%emt 0:09:40]} (21... Bg4 $11 22. f3 Bf5) 22. exf6 {[%emt 0:02:50]} ({White should play} 22. f4 $14 Qe7 23. axb5) 22... Qxf6 $11 {[%emt 0:00:04]} 23. f4 {[%emt 0:01:40]} Bf5 {[%emt 0:00:15]} 24. Rb2 {[%emt 0:00:44]} Bd3 {[%emt 0:00:33][%cal Ob5b4]} 25. Re5 {[%emt 0:00:39]} b4 {[%emt 0:01:02]} 26. Rxb4 {[%emt 0:00:32]} (26. Ne3 $2 bxc3 27. Rc2 (27. Rxb8 $2 Rxb8 28. Qg4 Kh7 $19) 27... Qb6 $19) 26... Rxb4 {[%emt 0:00:05]} 27. cxb4 {[%emt 0:00:02]} Qb6 {[%emt 0:00:06][%csl LRb4,LRd4]} 28. Ne3 {[%emt 0:01:06]} Qxd4 {[%emt 0:00:34] Strongly threatening ...Re8.} 29. Kh1 {[%emt 0:00:29]} Rd8 {[%emt 0:02:13]} 30. h4 {[%emt 0:00:31]} Qb2 {[%emt 0:01:07]} (30... Qb6 $11 {remains equal.}) 31. Re7 $1 $16 {[%emt 0:00:28]} (31. Nxd5 Nxd5 32. Rxd5 (32. Bxd5+ $2 Rxd5 33. Re8+ Kh7 $19) 32... Re8 $17) 31... d4 $2 {[%emt 0:10:30]} (31... Ne8 $16) 32. Ng4 $1 $18 {[%emt 0:00:31]} ({Worse is} 32. Nxc4 Bxc4 33. Rxc7 Bf7 $11) 32... Ne8 $2 {[%emt 0:00:06] [#]} (32... Qb1 33. Qxb1 Bxb1) 33. Nxh6+ $1 {[%emt 0:00:31][%mdl 512]} gxh6 {[%emt 0:00:08]} 34. Qh5 {[%emt 0:00:29] Qf7+ would kill now.} Qb1+ {[%emt 0:00:21]} 35. Kh2 {[%emt 0:00:15]} Bg6 {[%emt 0:07:09] Against Qf7+} 36. Bd5+ $2 {[%emt 0:00:25]} ({White must play} 36. Qa5 $1 $18 {[%cal Ra5d8]} Rb8 37. Qe5) 36... Rxd5 $14 {[%emt 0:00:13]} 37. Qxd5+ {[%emt 0:00:04]} Kf8 {[%emt 0:00:04]} 38. Qc5 {[%emt 0:00:25] The board is on fire.} Kg8 {[%emt 0:00:33]} 39. Qxc4+ {[%emt 0:00:22]} Kf8 {[%emt 0:00:04]} 40. Qc5 {[%emt 0:00:35]} Qc2+ {[%emt 0:00:26]} 41. Qxc2 {[%emt 0:02:42]} Bxc2 {[%emt 0:05:45]} 42. Rd7 {[%emt 0:06:01]} d3 $1 {[%emt 0:04:00][%cal Oe8c7]} 43. Kg2 {[%emt 0:13:31]} Nf6 {[%emt 0:07:46]} (43... h5 $1 $14) 44. Rd4 $1 $16 {[%emt 0:00:40] And now b5 would win.} Bxa4 {[%emt 0:05:46]} 45. Rxd3 {[%emt 0:00:09]} Bc6+ {[%emt 0:00:16]} 46. Kf2 {[%emt 0:02:45]} Ke7 {[%emt 0:01:42]} 47. Ke3 {[%emt 0:02:56]} (47. Ra3 $16) 47... Bb5 {[%emt 0:02:36]} (47... Nd5+ $14 48. Kd4 Nxb4) 48. Rd1 $1 {[%emt 0:02:25]} Ke6 {[%emt 0:00:04]} 49. Rd8 {[%emt 0:00:38]} (49. Kd4 $16) 49... Kf5 {[%emt 0:00:27]} (49... h5 $14) 50. Kd4 $1 {[%emt 0:00:55]} h5 {[%emt 0:00:56]} 51. Rf8 $2 {[%emt 0:00:17]} (51. Rc8 $1 $16) 51... Ke6 {[%emt 0:00:15]} (51... Be8 $1 $11 {keeps the balance.}) 52. Ra8 {[%emt 0:01:07]} (52. Rb8 $1 $16) 52... Kf5 {[%emt 0:00:25]} (52... Ne8 $1 $14) 53. Ra7 {[%emt 0:00:21]} (53. Rc8 $16) 53... Ne4 $14 {[%emt 0:06:59]} 54. Rg7 {[%emt 0:01:27]} Bf1 $2 {[%emt 0:01:26] [#]} ({Better is} 54... Kf6 $14 55. Rg8 Kf7) 55. Rg8 {[%emt 0:01:42]} (55. g4+ $1 $18 hxg4 56. h5) 55... Be2 {[%emt 0:01:33]} 56. Rf8+ {[%emt 0:00:32]} Nf6 {[%emt 0:00:02]} 57. Rf7 {[%emt 0:00:09]} Bb5 {[%emt 0:01:20] [#]} 58. Re7 $1 {[%emt 0:00:26] Threatens to win with Re5+. White is more active.} Kg6 $2 {[%emt 0:00:23][%mdl 8192]} (58... Ng4 $16 {is tougher.} 59. Rg7 Kf6) 59. Re6 $18 {[%emt 0:00:52]} Kf5 {[%emt 0:00:41]} 60. Re5+ {[%emt 0:00:05]} Kg6 {[%emt 0:00:04]} 61. f5+ {[%emt 0:01:16]} Kf7 {[%emt 0:00:08]} 62. Re6 {[%emt 0:00:13]} Ng4 {[%emt 0:01:57]} 63. Ke4 {[%emt 0:00:49]} Bc4 {[%emt 0:00:47]} 64. Rd6 {[%emt 0:00:31]} Ke7 {[%emt 0:00:28]} 65. Rd4 {[%emt 0:00:36]} Bb5 {[%emt 0:00:57]} 66. Kf4 {[%emt 0:00:17]} Nf6 {[%emt 0:00:04]} 67. Rd1 {[%emt 0:00:51]} Be8 {[%emt 0:00:22]} 68. Re1+ {[%emt 0:00:27]} Kf7 {[%emt 0:00:07]} 69. Kg5 {[%emt 0:00:26] aiming for Re6.} Bd7 {[%emt 0:00:28] Inhibits Re6.} 70. Ra1 {[%emt 0:00:42]} Bb5 {[%emt 0:00:10]} 71. Rc1 {[%emt 0:00:18]} Ne4+ {[%emt 0:00:30]} 72. Kf4 {[%emt 0:00:43]} Nf2 {[%emt 0:00:09] White must now prevent ...Nd3+.} 73. Rc8 {[%emt 0:00:34]} Kf6 {[%emt 0:00:24]} 74. Rf8+ {[%emt 0:00:04]} Kg7 {[%emt 0:00:32]} 75. Rb8 {[%emt 0:00:16]} Kf6 {[%emt 0:00:19]} 76. Rb6+ {[%emt 0:00:10]} Kf7 {[%emt 0:01:28]} (76... Kg7 {keeps fighting.} 77. Rg6+ Kh7) 77. Rh6 {[%emt 0:00:26]} Nd3+ $2 {[%emt 0:01:47]} (77... Be2 78. Rh7+ Kg8) 78. Kg5 {[%emt 0:00:09]} Nxb4 {[%emt 0:00:43]} 79. Rh7+ {[%emt 0:00:29]} Kg8 {[%emt 0:00:17]} 80. Rb7 {[%emt 0:02:32]} Nd5 {[%emt 0:00:39]} 81. Kxh5 {[%emt 0:00:00] Kg6 is the strong threat.} Be8+ {[%emt 0:01:09]} 82. Kg5 {[%emt 0:00:00]} a5 {[%emt 0:00:02]} 83. h5 {[%emt 0:00:00][%cal Bh4h5,Bh5h6,Bh6h7][%mdl 32] Threatening mate with h6.} a4 {[%emt 0:00:04]} 84. h6 {[%emt 0:00:14] White mates.} Nc3 {[%emt 0:00:25]} 85. h7+ {[%emt 0:00:49]} Kh8 {[%emt 0:00:02]} 86. Re7 {[%emt 0:01:14]} Bc6 {[%emt 0:00:51]} 87. Kh6 {[%emt 0:00:11] Weighted Error Value: White=0.21 (precise) /Black=0.51} 1-0

[Event "FRA-ch Teams Top 16-B 2022"]
[Site "Chartres"]
[Date "2022.06.15"]
[Round "7.4"]
[White "Moussard, Jules"]
[Black "Burri, Quentin"]
[Result "1/2-1/2"]
[ECO "B63"]
[WhiteElo "2651"]
[BlackElo "2401"]
[Annotator "TA"]
[PlyCount "155"]
[EventDate "2022.06.09"]
[EventType "team-tourn"]
[EventCountry "FRA"]
[SourceTitle "playchess.com"]
[Source "ChessBase"]
[SourceQuality "1"]
[TimeControl "40/5400+30:1800+30"]

{[%evp 17,155,35,27,27,45,20,35,15,50,49,49,36,47,20,27,0,0,-14,-17,-11,0,-2,0,-45,60,43,54,48,52,52,52,52,52,48,49,49,95,43,43,43,59,45,45,45,45,38,46,24,30,32,22,0,29,25,30,12,10,16,16,0,0,0,0,0,0,0,0,0,0,0,0,0,0,-55,0,-5,0,0,0,0,0,0,0,0,0,0,0,0,0,0,0,0,0,0,0,0,0,0,0,0,0,0,0,0,0,0,0,0,0,0,0,0,0,0,0,0,0,0,0,0,0,0,0,0,0,0,0,0,0,0,0,0,0,0,0,0,0,0,0,-2]} 1. e4 {[%emt 0:03:44]} c5 {[%emt 0:00:07]} 2. Nf3 {[%emt 0:00:55]} d6 {[%emt 0:00:17]} 3. d4 {[%emt 0:00:58]} cxd4 {[%emt 0:00:39]} 4. Nxd4 {[%emt 0:00:21]} Nf6 {[%emt 0:00:15]} 5. Nc3 {[%emt 0:00:05]} Nc6 {[%emt 0:00:29]} 6. Bg5 {[%emt 0:01:06]} e6 {[%emt 0:00:25]} 7. Qd2 {[%emt 0:00:09]} Be7 {[%emt 0:00:51]} 8. O-O-O {[%emt 0:01:19]} Nxd4 {[%emt 0:00:16] 8...a6 is becoming the main line.} 9. Qxd4 {[%emt 0:00:06]} O-O {[%emt 0:00:08]} 10. h4 {[%emt 0:00:22] B63: Sicilian: Richter-Rauzer: 7...Be7 and unusual Black 7th moves.} h6 {[%emt 0:01:29] ...e5 is the strong threat.} 11. f3 {[%emt 0:01:00]} e5 {[%emt 0:12:47] [#]} 12. Qf2 $146 {[%emt 0:01:44] White is slightly better.} ({Predecessor:} 12. Qg1 Be6 13. Kb1 Rc8 14. Bxf6 Bxf6 15. Qxa7 Bxh4 16. Nd5 Bg5 17. g3 Ra8 18. Qf2 Rxa2 {0-1 (68) Van Osch,M (2296)-Cicak,S (2496) Germany 2018}) 12... Be6 {[%emt 0:04:11]} (12... hxg5 13. hxg5) 13. Bxf6 {[%emt 0:07:19]} Bxf6 {[%emt 0:00:25]} 14. Nd5 {[%emt 0:00:19]} Rc8 {[%emt 0:13:44]} 15. a3 {[%emt 0:01:36]} Rc5 {[%emt 0:09:25]} 16. b4 {[%emt 0:05:01]} Rc8 {[%emt 0:01:26]} 17. Kb2 {[%emt 0:03:12]} a5 {[%emt 0:07:31]} 18. c3 {[%emt 0:17:11]} Be7 {[%emt 0:08:01]} (18... axb4 {looks sharper.} 19. axb4 Bxd5 20. Rxd5 Qc7) 19. g3 {[%emt 0:04:59]} axb4 {[%emt 0:06:09]} 20. axb4 {[%emt 0:02:01]} Qd7 {[%emt 0:05:50]} (20... Bxd5 $15 21. Rxd5 Qc7) 21. Qb6 {[%emt 0:03:08]} Rc6 {[%emt 0:08:14]} 22. Bb5 {[%emt 0:02:29]} Rxb6 {[%emt 0:00:25]} 23. Bxd7 {[%emt 0:00:06]} Bxd5 {[%emt 0:00:06]} 24. Rxd5 {[%emt 0:00:26]} Ra6 {[%emt 0:00:13]} 25. Bb5 {[%emt 0:02:12][%cal Bd7b5,Bb5c4,Bc4b3,Bb3d5][%mdl 32]} Ra7 {[%emt 0:02:13]} 26. Bc4 {[%emt 0:06:33]} b6 {[%emt 0:03:09]} (26... Rc8 $14 {might be stronger.} 27. Bb3 b6) 27. Rhd1 {[%emt 0:06:07] White is more active.} ({White should try} 27. Rdd1 $16) 27... Rc8 $14 {[%emt 0:04:28]} 28. Bb3 {[%emt 0:00:20]} Rac7 {[%emt 0:00:40]} 29. R1d3 {[%emt 0:00:16]} g6 {[%emt 0:00:43]} 30. Rb5 {[%emt 0:02:35]} Rb8 {[%emt 0:00:28]} 31. Bd5 {[%emt 0:02:17]} Kg7 {[%emt 0:00:56]} 32. c4 {[%emt 0:01:22]} Ra7 {[%emt 0:00:37]} 33. Rc3 {[%emt 0:00:07][%cal Oc4c5]} Bd8 {[%emt 0:00:54]} 34. Rd3 {[%emt 0:03:28]} Be7 {[%emt 0:00:54]} 35. Rb3 {[%emt 0:00:05][%cal Oc4c5]} Bd8 $1 {[%emt 0:01:00]} 36. Kb1 {[%emt 0:02:46]} Bc7 {[%emt 0:00:23]} 37. Bc6 {[%emt 0:00:32]} Bd8 {[%emt 0:00:56]} 38. Rd5 {[%emt 0:07:38]} Rc8 {[%emt 0:02:22]} 39. b5 {[%emt 0:05:50]} Be7 {[%emt 0:03:43]} 40. Rdd3 {[%emt 0:00:37]} Rcc7 {[%emt 0:01:29]} 41. Ra3 {[%emt 0:12:07]} Rxa3 {[%emt 0:10:39]} 42. Rxa3 $11 {[%emt 0:00:08][%mdl 4096] Endgame KRB-KRB} d5 $1 {[%emt 0:00:05]} 43. Ra6 {[%emt 0:07:26]} dxe4 {[%emt 0:02:02]} 44. fxe4 {[%emt 0:00:34]} Bc5 {[%emt 0:00:19]} 45. g4 {[%emt 0:00:06] Against f5} (45. Kc2 $11) 45... Re7 {[%emt 0:04:46]} (45... f5 $15 46. gxf5 (46. exf5 gxf5 47. gxf5 Kf6 $15) 46... gxf5 47. exf5 Kf6) 46. Bd5 {[%emt 0:01:55] The position is equal.} Rc7 {[%emt 0:00:49]} 47. Kc2 {[%emt 0:00:18]} Re7 {[%emt 0:01:52]} 48. Kd3 {[%emt 0:01:10]} Rc7 {[%emt 0:00:33]} 49. Ke2 {[%emt 0:00:34]} Re7 {[%emt 0:00:38]} 50. Kf3 {[%emt 0:00:53]} Rc7 {[%emt 0:00:38]} 51. g5 {[%emt 0:00:10]} hxg5 {[%emt 0:01:13]} 52. hxg5 {[%emt 0:00:05]} Re7 {[%emt 0:00:25]} 53. Kg4 {[%emt 0:00:10]} Rc7 {[%emt 0:01:05]} 54. Ra1 {[%emt 0:00:37]} Bd4 {[%emt 0:00:45]} 55. Rf1 {[%emt 0:00:17]} Ra7 {[%emt 0:02:07]} 56. Rf6 {[%emt 0:00:19]} Bc5 {[%emt 0:01:16]} 57. Rc6 {[%emt 0:00:23]} Bd4 {[%emt 0:00:36]} 58. Rc8 {[%emt 0:02:38]} Ra1 {[%emt 0:05:09]} 59. Rc7 {[%emt 0:01:10]} Rf1 {[%emt 0:00:16]} 60. Kh3 {[%emt 0:00:15]} Be3 {[%emt 0:00:43]} 61. Kg2 {[%emt 0:00:59]} Rf2+ {[%emt 0:00:11]} 62. Kg3 {[%emt 0:00:39][%cal Oc4c5] [#] Hoping for c5!} Rf1 {[%emt 0:00:09]} 63. Rd7 {[%emt 0:01:52]} Bc5 {[%emt 0:00:57]} (63... Bxg5 $2 64. c5 bxc5 65. b6 $18) 64. Rc7 {[%emt 0:06:57]} Bd4 {[%emt 0:00:43]} 65. Ra7 {[%emt 0:05:57]} Bc5 {[%emt 0:00:38]} 66. Kg2 {[%emt 0:00:40]} Rf2+ {[%emt 0:00:06]} 67. Kh3 {[%emt 0:00:06]} Rf1 {[%emt 0:00:24]} 68. Rc7 {[%emt 0:00:12]} Bd4 {[%emt 0:00:14]} 69. Re7 {[%emt 0:01:30]} Kf8 {[%emt 0:00:26]} 70. Rd7 {[%emt 0:00:19]} Kg7 {[%emt 0:00:24]} 71. Rd8 {[%emt 0:00:14]} Rg1 {[%emt 0:01:21]} 72. Kh2 {[%emt 0:02:07]} Rg4 {[%emt 0:01:14]} 73. Kh3 {[%emt 0:00:52]} Rg1 {[%emt 0:00:09]} 74. Re8 {[%emt 0:00:09]} Rxg5 {[%emt 0:00:36]} 75. Re7 {[%emt 0:00:05]} Rg1 {[%emt 0:00:24]} 76. Rxf7+ {[%emt 0:00:19]} Kh6 {[%emt 0:00:05]} 77. Kh2 {[%emt 0:00:23]} Rg4 {[%emt 0:01:19]} 78. Rf3 {[%emt 0:00:39] Weighted Error Value: White=0.09 (flawless) /Black=0.09 (flawless)} 1/2-1/2